fUSD/lending_fUSD_20240524
["ID","MTS","AMOUNT","RATE_DAILY","PERIOD"]
[327829895,1716526231908,-487.75,0.00011591,2]
[327829897,1716526231918,-190.98000651,0.00011608,2]
[327829898,1716526231927,-150.0,0.00011642,2]
[327829899,1716526231936,-500.0,0.00011642,2]
[327829900,1716526231946,-4470.9316,0.000117,2]
[327829901,1716526231955,-164.1244,0.000117,2]
[327829902,1716526231964,-235.54,0.00011717,2]
[327829903,1716526231973,-250.0,0.00011859,2]
[327829904,1716526231982,-486.52,0.00011872,2]
[327829905,1716526231991,-9235.15,0.00012067,2]
[327829906,1716526232000,-300.0,0.000121,4]
[327829907,1716526232009,-600.0,0.000122,4]
[327829908,1716526232018,-177.68,0.00012256,2]
[327829909,1716526232028,-1000.0,0.000123,4]
[327829910,1716526232037,-1852.42,0.00012333,2]
[327829911,1716526232046,-1300.0,0.000124,4]
[327829912,1716526232055,-1700.0,0.000125,4]
[327829913,1716526232065,-300.0,0.000126,4]
[327829914,1716526232074,-802.05,0.00012602,2]
[327829915,1716526232083,-300.0,0.000127,4]
[327829916,1716526232093,-5276.1286,0.000128,2]
[327829917,1716526232102,-300.0,0.000128,4]
[327829918,1716526232111,-775.7356,0.000128,2]
[327829919,1716526232121,-326.84704886,0.000128,2]
[327829920,1716526232130,-1009.0,0.0001289,2]
[327829921,1716526232140,-291.15213494,0.00012898,2]
[327829922,1716526232149,-1247.02141285,0.00012898,2]
[327829923,1716526232161,-28690.81703608,0.00012899,2]
[327829924,1716526232170,-87086.03344983,0.000129,2]
[327829925,1716526232556,-896.99068152,0.000129,2]
[327829926,1716526232568,-418.90217464,0.000129,2]
[327829927,1716526232609,-7966.72183934,0.000129,2]
[327829928,1716526232621,-201999.90577962,0.000129,2]
[327829929,1716526232630,-185.95138287,0.000129,2]
[327829930,1716526232639,-24511.47892935,0.000129,2]
[327829931,1716526232648,-180.26956979,0.000129,2]
[327829932,1716526232658,-300.0,0.000129,4]
[327829933,1716526232667,-323.29911078,0.000129,2]
[327829934,1716526232676,-323.29911071,0.000129,2]
[327829935,1716526232685,-323.29911071,0.000129,2]
[327829936,1716526232694,-323.29911071,0.000129,2]
[327829937,1716526232703,-323.29911071,0.000129,2]
[327829938,1716526232712,-323.29911071,0.000129,2]
[327829939,1716526232721,-323.29911071,0.000129,2]
[327829940,1716526232730,-323.29911071,0.000129,2]
[327829941,1716526232742,-1282.90969146,0.000129,2]
[327829942,1716526232751,-326.84704886,0.000129,2]
[327829943,1716526232761,-193.1749652,0.000129,2]
[327829944,1716526232770,-180.29542112,0.0001299,2]
[327829945,1716526232780,-151.93,0.0001299,2]
[327829946,1716526232789,-151.93,0.0001299,2]
[327829947,1716526232799,-884.2717764,0.00012998,2]
[327829948,1716526232808,-2262.36919646,0.00012998,2]
[327829949,1716526232818,-264.41414437,0.00012998,2]
[327829950,1716526232827,-532.73745398,0.00012998,2]
[327829951,1716526232837,-345.71235567,0.00012998,2]
[327829952,1716526232847,-605.4629941,0.00012999,2]
[327829953,1716526232856,-2484.91379606,0.00012999,2]
[327829954,1716526232866,-151.54266311,0.00012999,2]
[327829955,1716526232876,-355734.59720914,0.00013,2]
[327829956,1716526232892,-544.0998858,0.00013,2]
[327829957,1716526232903,-259.86200001,0.00013,2]
[327829958,1716526232915,-357.4799971,0.00013,2]
[327829959,1716526232925,-781.95019923,0.00013,2]
[327829960,1716526232937,-2130.44985288,0.00013,2]
[327829961,1716526232948,-827.13712285,0.00013,2]
[327829962,1716526232958,-187668.59893343,0.00013,2]
[327829963,1716526232970,-18266.78652647,0.00013,2]
[327829964,1716526232981,-700.206448,0.00013,2]
[327829965,1716526232993,-626.71201654,0.00013,2]
[327829966,1716526233004,-346.48303694,0.00013,2]
[327829967,1716526233049,-6370.88873846,0.00013,2]
[327829968,1716526233061,-667.36237526,0.00013,2]
[327829972,1716526238002,-254.327,0.000128,2]
[327829973,1716526238011,-580.79010452,0.00013,2]
[327829974,1716526238052,-6628.30439943,0.00013,2]
[327829975,1716526238099,-351.13088306,0.00013,2]
[327829976,1716526238110,-38076.34820925,0.00013,2]
[327829977,1716526238429,-946.67592046,0.00013,2]
[327829978,1716526238447,-7720.38174805,0.00013,2]
[327829979,1716526238458,-991.78749985,0.00013,2]
[327829980,1716526238475,-32298.15346464,0.00013,2]
[327829981,1716526238487,-790.91543583,0.00013,2]
[327829982,1716526238500,-439.45564214,0.00013,2]
[327829983,1716526238528,-91625.43773575,0.00013,2]
[327830053,1716526240509,-2267.99353338,0.00013,2]
[327830054,1716526240521,-53126.63443164,0.00013,2]
[327830055,1716526241335,-530.86535505,0.00013,2]
[327830056,1716526241378,-363.6,0.00013,2]
[327830068,1716526241639,-189873.80431887,0.00013,2]
[327830069,1716526241653,-857009.36385012,0.00013,2]
[327830086,1716526243123,-376000.81322281,0.00013,2]
[327830087,1716526243139,-108370.42834926,0.00013,2]
[327830088,1716526243152,-10095.42937796,0.00013,2]
[327830089,1716526243623,-2712.36498012,0.00013,2]
[327830090,1716526243638,-7066.95043861,0.00013,2]
[327830091,1716526243652,-345.78,0.00013,2]
[327830114,1716526243915,-26603.54763778,0.00013,2]
[327830117,1716526243934,-6029.49838837,0.00013,2]
[327830294,1716526245863,-210.76581946,0.00012999,2]
[327830296,1716526245872,-1182.82901142,0.00012999,2]
[327830298,1716526245882,-360.32308896,0.00013,2]
[327830304,1716526245933,-585.35274278,0.00013,2]
[327830306,1716526245945,-526.995,0.00013,2]
[327830308,1716526245956,-1108.82174182,0.00013,2]
[327830313,1716526245997,-14994.31883665,0.00013,2]
[327830323,1716526246076,-66095.26676568,0.00013,2]
[327830331,1716526246145,-28944.85528841,0.00013,2]
[327830338,1716526246215,-3135.4164867,0.00013,2]
[327830556,1716527201531,1366.39899489,0.0003,30]
[327830568,1716527397430,761.94,9.476e-05,2]
[327830573,1716527433047,-482.87677638,0.00010078,2]
[327830574,1716527433129,-5085.00559816,0.00010078,2]
[327830575,1716527433140,-1883.69165634,0.00010079,2]
[327830576,1716527433150,-200.0,0.00011393,2]
[327830577,1716527433160,-234.46,0.00011404,2]
[327830578,1716527433169,-152.11,0.00011407,2]
[327830579,1716527433179,-154.5,0.00011417,2]
[327830580,1716527433188,-250.0,0.00011438,2]
[327830581,1716527433197,-8145.93,0.00011438,2]
[327830582,1716527433207,-1161.16579886,0.00011481,2]
[327830583,1716527433218,-339.18,0.00011481,2]
[327830584,1716527433234,-551.60067036,0.00011481,2]
[327830585,1716527433282,-484.28691844,0.00011481,2]
[327830586,1716527433354,-559.18577829,0.00011481,2]
[327830587,1716527433366,-3060.67083405,0.00011481,2]
[327830588,1716527433375,-23900.0,0.00011503,2]
[327830589,1716527433384,-150.0,0.00011732,2]
[327830590,1716527433393,-761.94,0.0001174,2]
[327830591,1716527433402,-1249.46,0.00011832,2]
[327830592,1716527433411,-154.82,0.00011867,2]
[327830593,1716527433420,-250.0,0.00011893,2]
[327830594,1716527433430,-154.82,0.0001197,2]
[327830596,1716527433439,-154.82,0.00012073,2]
[327830598,1716527433448,-400.0,0.000121,4]
[327830600,1716527433457,-154.82,0.00012176,2]
[327830602,1716527433466,-800.0,0.000122,4]
[327830604,1716527433475,-154.82,0.00012279,2]
[327830606,1716527433484,-1300.0,0.000123,4]
[327830608,1716527433494,-154.82,0.00012382,2]
[327830610,1716527433503,-1700.0,0.000124,4]
[327830612,1716527433513,-154.82,0.00012485,2]
[327830615,1716527433523,-2200.0,0.000125,4]
[327830617,1716527433533,-400.0,0.000126,4]
[327830619,1716527433542,-1000.0,0.000126,2]
[327830621,1716527433551,-400.0,0.000127,4]
[327830623,1716527433561,-400.0,0.000128,4]
[327830625,1716527433570,-1566.41558323,0.00012837,2]
[327830627,1716527433580,-155.0,0.000129,2]
[327830629,1716527433594,-902.54274539,0.000129,2]
[327830631,1716527433603,-1000.0,0.000129,2]
[327830633,1716527433614,-1000.0,0.000129,2]
[327830635,1716527433623,-400.0,0.000129,4]
[327830637,1716527433633,-128910.32179148,0.000129,2]
[327830639,1716527433645,-5717.65180852,0.000129,2]
[327830642,1716527433655,-2500.0,0.000129,2]
[327830644,1716527433665,-45883.950625,0.00013,2]
[327830646,1716527433677,-678.3618666,0.00013,2]
[327830648,1716527433688,-347.775,0.00013,2]
[327830650,1716527433699,-4850.0,0.00013,2]
[327830722,1716527438128,-21144.08965766,0.00013,2]
[327830723,1716527438361,-411.24644974,0.00013,2]
[327830730,1716527440813,-4498.92859569,0.00013,2]
[327830733,1716527440919,-25976.55972304,0.00013,2]
[327830734,1716527440931,-1677.51226761,0.00013,2]
[327830735,1716527441773,-2455.89715717,0.00013,2]
[327830736,1716527441785,-669.3090582,0.00013,2]
[327830737,1716527441796,-559.22210821,0.00013,2]
[327830738,1716527441807,-17357.62500003,0.00013,2]
[327830753,1716527443170,-1040.65937388,0.00013,2]
[327830763,1716527443758,-744.5,0.00013,2]
[327830764,1716527443772,-2992.66047825,0.00013,2]
[327830765,1716527443783,-302.0,0.00013,2]
[327830766,1716527443795,-514.01,0.00013,2]
[327830767,1716527443807,-1795.84537933,0.00013,2]
[327830768,1716527443819,-263.95605343,0.00013,2]
[327830769,1716527443831,-300.0,0.00013,2]
[327830770,1716527443849,-931.14427352,0.00013,2]
[327830771,1716527443861,-4149.46000906,0.00013,2]
[327830772,1716527443872,-3224.73762716,0.00013,2]
[327830773,1716527443884,-1740.0,0.00013,2]
[327830835,1716527446123,-3514.29202199,0.00013,2]
[327830836,1716527446135,-265.88500746,0.00013,2]
[327830837,1716527446228,-3511.14936923,0.00013,2]
[327830838,1716527446239,-41068.81970123,0.00013,2]
[327830839,1716527446250,-51544.63695263,0.00013,2]
[327830840,1716527446261,-338.43840616,0.00013,2]
[327830841,1716527446502,-693.01,0.00013,2]
[327830842,1716527446522,-5305.93381716,0.00013,2]
[327830843,1716527446533,-115059.25787316,0.00013,2]
[327830844,1716527612954,-155.0,0.00012739,2]
[327830845,1716527612977,-2606.040207,0.0001274,2]
[327830846,1716527613000,-2364.2726144,0.00012868,2]
[327830847,1716527613022,-208.81790596,0.00012869,2]
[327830848,1716527613044,-5567.88237454,0.00012869,2]
[327830849,1716527613067,-975.40547,0.0001287,2]
[327830850,1716527613088,-100000.0,0.000129,2]
[327830851,1716527613110,-290.5113,0.000129,2]
[327830852,1716527613135,-285.01206269,0.000129,2]
[327830853,1716527613158,-2187.63741095,0.00012998,2]
[327830854,1716527613183,-686.67265106,0.00012998,2]
[327830855,1716527613205,-277.04043614,0.00012998,2]
[327830856,1716527613227,-1000.0,0.00012998,2]
[327830857,1716527613249,-344.66778136,0.00012998,2]
[327830858,1716527613271,-755.6187192,0.00012998,2]
[327830859,1716527613293,-207.5485086,0.00012998,2]
[327830860,1716527613316,-306.49578251,0.00012998,2]
[327830861,1716527613338,-1180.1693692,0.00012998,2]
[327830862,1716527613360,-181.89269478,0.00012998,2]
[327830863,1716527613383,-355.01537129,0.00012999,2]
[327830864,1716527613405,-3647.0,0.00012999,2]
[327830865,1716527613429,-155.28365723,0.00012999,2]
[327830866,1716527613452,-428.91365285,0.00012999,2]
[327830867,1716527613477,-20708057.68006819,0.00013,2]
[327830868,1716527613500,-2068705.87985951,0.00013,2]
[327830869,1716527613522,-2000.0,0.00013,2]
[327830870,1716527613544,-200.0,0.00013,2]
[327830871,1716527613566,-180.26956979,0.00013,2]
[327830872,1716527613589,-362.3044121,0.00013,2]
[327830873,1716527613610,-166.17506559,0.00013,2]
[327830874,1716527613634,-155.0,0.00013,2]
[327830875,1716527613660,-20229.281755,0.00013,2]
[327830876,1716527613687,-155.0,0.00013,2]
[327830877,1716527613710,-155.0,0.00013,2]
[327830878,1716527613734,-19739.35172492,0.00013,2]
[327830879,1716527619921,4432.22618101,0.00012997,2]
[327830880,1716527624724,155.16654877,0.00013,2]
[327830881,1716527626275,180.26956979,0.00013,2]
[327830882,1716527627854,547850.12707182,0.00013,2]
[327830883,1716527628209,364.14784877,0.00013,2]
[327830884,1716527628722,2606.040207,0.0001274,2]
[327830885,1716527629194,305.24075493,0.00013,2]
[327830886,1716527630837,19734.42478264,0.00013,2]
[327830887,1716527633837,20229.281755,0.00013,2]
[327830888,1716527641744,547850.12707182,0.00013,2]
[327830889,1716527646726,2605.10954313,0.0001274,2]
[327830890,1716527647605,14207.45538281,0.00013,2]
[327830891,1716527648342,180.26956979,0.00013,2]
[327830892,1716527657734,1973.82676622,0.00013,2]
[327830893,1716527668281,180.26956979,0.00013,2]
[327830894,1716527686282,180.26956979,0.00013,2]
[327830895,1716527704283,216.05296346,0.00013,2]
[327830896,1716527801632,155.18198229,0.00013,2]
[327830897,1716527801887,405.52485641,0.00013,2]
[327830898,1716527802018,549.40255929,0.00013,2]
[327830899,1716527803161,2606.040207,0.0001274,2]
[327830900,1716527803910,19739.35172492,0.00013,2]
[327830901,1716527803976,409.97178172,0.00013,2]
[327830902,1716527804014,751.54570649,0.0001181,2]
[327830903,1716527804070,226.87697159,0.00013,2]
[327830904,1716527804143,20229.281755,0.00013,2]
[327830905,1716527804230,547403.67687389,0.00013,2]
[327830906,1716527848135,2549.05213827,9.75e-05,2]
[327830907,1716527866063,580.12291282,9.75e-05,2]
[327830908,1716527871243,155.0,9.75e-05,2]
[327830909,1716527874255,547850.12707182,9.75e-05,2]
[327830910,1716527877248,19739.35172492,9.75e-05,2]
[327830911,1716527878175,20229.281755,9.75e-05,2]
[327830912,1716527879108,292.46715472,9.75e-05,2]
[327830913,1716527882040,1360.85904098,9.75e-05,2]
[327830914,1716527884870,7521.99858144,9.75e-05,2]
[327830915,1716527886287,155.0,9.75e-05,2]
[327830916,1716527889250,155.0,9.75e-05,2]
[327830917,1716527890263,202617.9542522,9.75e-05,2]
[327830918,1716528036102,-150.0,8.177e-05,2]
[327830919,1716528040388,-5.0,8.177e-05,2]
[327830920,1716528040409,-155.0,8.177e-05,2]
[327830921,1716528040431,-263.25204484,8.177e-05,2]
[327830922,1716528040452,-155.0,8.177e-05,2]
[327830923,1716528040473,-1180.356749,8.177e-05,2]
[327830924,1716528040495,-4800.39120616,8.178e-05,2]
[327830925,1716528048638,-155.0,8.175e-05,2]
[327830926,1716528049970,-245.76381709,8.175e-05,2]
[327830927,1716528056779,-150.0,8.174e-05,2]
[327830929,1716528257019,500.0,7.699e-05,2]
[327830930,1716528273751,167.61,7.189e-05,2]
[327830931,1716528276437,-327.02252959,8.142e-05,2]
[327830932,1716528276460,-5567.88237454,8.142e-05,2]
[327830933,1716528276482,-155.0,8.142e-05,2]
[327830934,1716528276504,-450.09509587,8.143e-05,2]
[327830935,1716528297279,4263.6,7.189e-05,2]
[327830936,1716528339011,319.47486465,0.00031,120]
[327830937,1716528347690,4000.0,0.00027397,30]
[327830951,1716528452871,168.72,7.173e-05,2]
[327830952,1716528465829,150.0,5.737e-05,2]
[327830953,1716528465850,16.51,5.737e-05,2]
[327830954,1716528466253,133.49,6.311e-05,2]
[327830955,1716528466277,33.02,6.311e-05,2]
[327830956,1716528466475,166.51,6.885e-05,2]
[327830957,1716528466663,166.51,7.458e-05,2]
[327830958,1716528481328,150.0,7.173e-05,2]
[327830959,1716528481351,5.0,7.173e-05,2]
[327830960,1716528482128,1360.85904098,7.173e-05,2]
[327830961,1716528486304,155.0,7.173e-05,2]
[327830962,1716528486329,20074.281755,7.173e-05,2]
[327830963,1716528486966,7521.99858144,7.173e-05,2]
[327830964,1716528489407,19739.35172492,7.173e-05,2]
[327830965,1716528499369,176.41220836,7.173e-05,2]
[327830966,1716528500122,1360.85904098,7.173e-05,2]
[327830967,1716528500957,7521.99858144,7.173e-05,2]
[327830968,1716528502213,245.76381709,7.173e-05,2]
[327830969,1716528502237,9480.32916418,7.173e-05,2]
[327830970,1716528505327,19739.35172492,7.173e-05,2]
[327830971,1716528518140,150.0,7.173e-05,2]
[327830972,1716528518162,177.44,7.173e-05,2]
[327830973,1716528518184,1033.41904098,7.173e-05,2]
[327830974,1716528520957,4487.90885957,7.173e-05,2]
[327830975,1716528521330,19739.35172492,7.173e-05,2]
[327830976,1716528536120,1360.85904098,7.173e-05,2]
[327830977,1716528537527,17057.08827581,7.173e-05,2]
[327830978,1716528544211,300.0,5.38e-05,2]
[327830979,1716528554136,606.57643827,7.173e-05,2]
[327830980,1716528603517,150.0,7.173e-05,2]
[327830981,1716528603691,150.0,7.173e-05,2]
[327830982,1716528603884,150.0,7.173e-05,2]
[327830983,1716528603905,32.40650193,7.173e-05,2]
[327830984,1716528619354,300.0,7.173e-05,2]
[327830985,1716528625543,155.0,7.173e-05,2]
[327830991,1716528632360,-201.08302351,8.007e-05,2]
[327830992,1716528632373,-2219.58767147,8.008e-05,2]
[327830993,1716528632385,-5438.39379598,8.008e-05,2]
[327830994,1716528634396,-4684.91853255,8.008e-05,2]
[327830995,1716528634407,-1215.42910242,8.008e-05,2]
[327830996,1716528634417,-536.2038985,8.008e-05,2]
[327830997,1716528634427,-266.5201881,8.008e-05,2]
[327830998,1716528634437,-1790.87747307,8.009e-05,2]
[327830999,1716528634448,-340.14954283,8.009e-05,2]
[327831000,1716528634460,-2024.12307157,8.009e-05,2]
[327831001,1716528634471,-4432.22618101,8.009e-05,2]
[327831002,1716528634480,-378.37900291,8.01e-05,2]
[327831003,1716528634490,-155.0,8.01e-05,2]
[327831004,1716528634500,-155.0,8.01e-05,2]
[327831005,1716528634509,-534.9432489,8.01e-05,2]
[327831006,1716528634519,-157.8588803,8.01e-05,2]
[327831007,1716528634529,-314.13285556,8.01e-05,2]
[327831008,1716528634538,-166.01147204,8.01e-05,2]
[327831009,1716528634548,-263.25204484,8.011e-05,2]
[327831010,1716528634558,-321.96055433,8.011e-05,2]
[327831012,1716528634567,-155.0,8.011e-05,2]
[327831014,1716528634577,-156.23534326,8.011e-05,2]
[327831016,1716528634587,-290.59150024,8.011e-05,2]
[327831017,1716528634596,-7521.94316228,8.011e-05,2]
[327831019,1716528634606,-3286.97999917,8.011e-05,2]
[327831021,1716528634616,-4600.7831197,8.011e-05,2]
[327831023,1716528634626,-290.59150024,8.011e-05,2]
[327831025,1716528634636,-2330.40901735,8.011e-05,2]
[327831027,1716528634646,-5278.29883426,8.011e-05,2]
[327831029,1716528634655,-290.59150024,8.011e-05,2]
[327831031,1716528634665,-150.0,8.012e-05,2]
[327831033,1716528634675,-155.0,8.012e-05,2]
[327831035,1716528634685,-155.0,8.012e-05,2]
[327831037,1716528634694,-306.53561288,8.012e-05,2]
[327831039,1716528634704,-516.62800356,8.012e-05,2]
[327831041,1716528634714,-2223.86794373,8.012e-05,2]
[327831043,1716528634724,-35392.01719031,8.012e-05,2]
[327831045,1716528634734,-5567.88237454,8.012e-05,2]
[327831047,1716528634743,-2002.08160978,8.013e-05,2]
[327831049,1716528634753,-657.03192757,8.013e-05,2]
[327831051,1716528634763,-624.01902801,8.013e-05,2]
[327831053,1716528634773,-686.78764601,8.013e-05,2]
[327831055,1716528634783,-4280.3749567,8.013e-05,2]
[327831057,1716528634793,-155.0,8.013e-05,2]
[327831059,1716528634804,-155.0,8.013e-05,2]
[327831061,1716528634813,-234.40611588,8.013e-05,2]
[327831064,1716528634823,-489.24399676,8.013e-05,2]
[327831067,1716528634833,-327.02252959,8.013e-05,2]
[327831069,1716528634843,-155.0,8.014e-05,2]
[327831072,1716528634853,-344.72853411,8.014e-05,2]
[327831075,1716528634865,-155.0,8.014e-05,2]
[327831077,1716528634874,-162.15064589,8.014e-05,2]
[327831079,1716528634884,-155.0,8.014e-05,2]
[327831080,1716528634894,-237.48860909,8.014e-05,2]
[327831081,1716528634903,-1790.87747307,8.014e-05,2]
[327831082,1716528634913,-1381.93423711,8.014e-05,2]
[327831083,1716528634923,-1245.97765168,8.014e-05,2]
[327831084,1716528634933,-168.01309811,8.014e-05,2]
[327831085,1716528634943,-834.98486009,8.015e-05,2]
[327831086,1716528634953,-155.0,8.015e-05,2]
[327831087,1716528634964,-155.0,8.015e-05,2]
[327831088,1716528634975,-155.0,8.015e-05,2]
[327831089,1716528634986,-210.44648753,8.015e-05,2]
[327831090,1716528634996,-447.02786322,8.015e-05,2]
[327831091,1716528635007,-1298.78853938,8.016e-05,2]
[327831092,1716528635017,-43334.51245494,8.016e-05,2]
[327831093,1716528635027,-939.86578351,8.029e-05,2]
[327831094,1716528635037,-166.51,8.032e-05,2]
[327831095,1716528635049,-5695.08517382,8.119e-05,2]
[327831096,1716528635066,-214.7218571,8.122e-05,2]
[327831097,1716528635077,-214.72185709,8.123e-05,2]
[327831098,1716528635087,-214.72185709,8.124e-05,2]
[327831099,1716528635098,-299084.93506935,8.174e-05,2]
[327831100,1716528635113,-82998.27998979,8.174e-05,2]
[327831101,1716528635127,-55272.18999277,8.174e-05,2]
[327831102,1716528635139,-295.43,8.177e-05,2]
[327831103,1716528635149,-155.06938859,8.177e-05,2]
[327831104,1716528635159,-4081.93062884,8.178e-05,2]
[327831105,1716528635170,-295.43,8.179e-05,2]
[327831106,1716528635180,-295.43,8.181e-05,2]
[327831107,1716528635191,-295.43,8.183e-05,2]
[327831108,1716528635202,-295.43,8.185e-05,2]
[327831109,1716528635212,-295.43,8.188e-05,2]
[327831110,1716528635222,-295.43,8.19e-05,2]
[327831111,1716528635232,-295.43,8.192e-05,2]
[327831112,1716528635242,-295.43,8.194e-05,2]
[327831113,1716528635253,-295.43,8.196e-05,2]
[327831114,1716528635263,-295.43,8.198e-05,2]
[327831115,1716528635273,-295.43,8.201e-05,2]
[327831116,1716528635283,-295.43,8.203e-05,2]
[327831117,1716528635294,-295.43,8.205e-05,2]
[327831118,1716528635304,-295.43,8.207e-05,2]
[327831119,1716528635314,-295.43,8.209e-05,2]
[327831120,1716528635324,-295.43,8.211e-05,2]
[327831121,1716528635334,-295.43,8.214e-05,2]
[327831122,1716528635345,-295.43,8.216e-05,2]
[327831123,1716528635355,-295.43,8.218e-05,2]
[327831124,1716528635368,-250.0,8.219e-05,2]
[327831125,1716528635377,-1023.45,8.219e-05,2]
[327831126,1716528635387,-171.43,8.219e-05,2]
[327831127,1716528635396,-156.4789055,8.321e-05,2]
[327831128,1716528635406,-1280.12,8.454e-05,2]
[327831129,1716528635416,-166.51,8.606e-05,2]
[327831130,1716528635426,-171.43,8.767e-05,2]
[327831131,1716528635436,-210.0,8.813e-05,2]
[327831132,1716528635446,-23900.0,9.306e-05,2]
[327831133,1716528635456,-171.43,9.315e-05,2]
[327831134,1716528635466,-219.0,9.695e-05,2]
[327831135,1716528635477,-264.16225376,9.75e-05,2]
[327831136,1716528635488,-214.82231735,9.75e-05,2]
[327831137,1716528635498,-171.43,9.863e-05,2]
[327831138,1716528635507,-325.10674615,0.0001,2]
[327831139,1716528635518,-252.60010919,0.0001,2]
[327831140,1716528635528,-713.66095672,0.0001,2]
[327831141,1716528635538,-208.81790596,0.0001,2]
[327831142,1716528635548,-204.79847016,0.0001,2]
[327831143,1716528635558,-1023.45,0.00010382,2]
[327831144,1716528635568,-150.0,0.00010959,2]
[327831145,1716528635578,-8595.59,0.00010959,2]
[327831146,1716528635588,-514.23,0.00010959,2]
[327831147,1716528635598,-804.18664536,0.00011,2]
[327831148,1716528635608,-751.54570649,0.00011,2]
[327831149,1716528635620,-1000.0,0.00012,2]
[327831150,1716528635818,-28426.74,0.00012055,2]
[327831151,1716528635829,-170.87,0.00012311,2]
[327831152,1716528635838,-240.0,0.00012365,2]
[327831153,1716528635848,-10945.59975113,0.000124,2]
[327831154,1716528635858,-1023.45,0.00012545,2]
[327831155,1716528635870,-200.0,0.00012935,2]
[327831156,1716528635879,-201.7056615,0.00012935,2]
[327831157,1716528635890,-4747.15170053,0.00012988,2]
[327831158,1716528635899,-362.26669991,0.00013,2]
[327831159,1716528635910,-289.30751023,0.00013,2]
[327831160,1716528635920,-158.46539353,0.00013,2]
[327831161,1716528635930,-155.0,0.00013,2]
[327831162,1716528635940,-526.13532328,0.00013,2]
[327831163,1716528635950,-2000.0,0.00013,2]
[327831164,1716528635964,-200.0,0.00013,2]
[327831165,1716528635974,-1802.9862,0.00013028,2]
[327831166,1716528635983,-975.40548,0.0001307,2]
[327831167,1716528635992,-206.41260794,0.0001312,2]
[327831168,1716528636002,-1064.51850023,0.0001312,2]
[327831169,1716528636011,-410.00321735,0.0001312,2]
[327831170,1716528636021,-155.03451459,0.0001312,2]
[327831171,1716528636031,-283.18099633,0.0001312,2]
[327831172,1716528636041,-406.25226612,0.0001312,2]
[327831173,1716528636050,-362.85956824,0.0001312,2]
[327831174,1716528636059,-177.58507374,0.00013122,2]
[327831175,1716528636068,-155.14158982,0.00013122,2]
[327831176,1716528636077,-3010.28376271,0.00013122,2]
[327831177,1716528636086,-155.40151344,0.00013122,2]
[327831178,1716528636095,-155.12703644,0.00013122,2]
[327831179,1716528636104,-155.13445303,0.00013122,2]
[327831180,1716528636114,-268.59558881,0.00013122,2]
[327831181,1716528636126,-3647.0,0.00013122,2]
[327831182,1716528636135,-155.4055923,0.00013122,2]
[327831183,1716528636146,-155.32825134,0.00013122,2]
[327831184,1716528636156,-327.07287831,0.00013122,2]
[327831185,1716528636165,-155.0,0.00013122,2]
[327831186,1716528636174,-784.20684881,0.00013122,2]
[327831187,1716528636183,-10531.13290305,0.00013123,2]
[327831188,1716528636193,-1249.24282258,0.00013125,2]
[327831189,1716528636202,-792.5074013,0.00013125,2]
[327831190,1716528636211,-155.0,0.00013126,2]
[327831191,1716528636221,-155.17789468,0.00013126,2]
[327831192,1716528636230,-155.0,0.00013126,2]
[327831193,1716528636239,-155.23908587,0.00013126,2]
[327831194,1716528636248,-155.30041863,0.00013126,2]
[327831195,1716528636256,-1124.84334573,0.00013126,2]
[327831196,1716528636269,-1966.97817922,0.00013126,2]
[327831197,1716528636279,-155.1535563,0.00013126,2]
[327831198,1716528636289,-2000.0,0.0001313,2]
[327831199,1716528636299,-200.0,0.0001313,2]
[327831200,1716528636308,-2000.0,0.00013261,2]
[327831201,1716528636318,-200.0,0.00013261,2]
[327831202,1716528636327,-975.40548,0.0001338,2]
[327831203,1716528636336,-2000.0,0.00013394,2]
[327831204,1716528636346,-200.0,0.00013394,2]
[327831205,1716528636355,-200.0,0.00013528,2]
[327831206,1716528636366,-975.40548,0.0001369,2]
[327831207,1716528636376,-200.0,0.00013699,2]
[327831208,1716528636386,-2751.0,0.00013699,2]